bitfinex/quotes_SOLUSD_20250204
["timestamp","ask_amount","ask_price","bid_price","bid_amount"]
[1738700959750,0.12549,207.39,207.32,41.38276086]
[1738700960213,0.43947,207.42,207.34,36.55956086]
[1738700960408,13.53733853,207.41,207.35,4.8227]
[1738700960637,0.063,207.42,207.36,36.55956086]
[1738700960934,13.91380853,207.39,207.3,36.55956086]
[1738700961233,13.91380853,207.37,207.28,36.55956086]
[1738700961540,36.55956086,207.32,207.27,0.063]
[1738700961740,13.91380853,207.29,207.27,0.063]
[1738700961914,50.47336939,207.28,207.27,0.063]
[1738700962119,0.50196,207.25,207.18,0.063]
[1738700962326,0.25098,207.19,207.18,0.063]
[1738700962525,13.41184853,207.24,207.18,0.063]
[1738700962526,41.38496086,207.24,207.18,0.063]
[1738700962731,13.78831853,207.19,207.18,0.063]
[1738700962921,13.91380853,207.19,207.18,0.063]
[1738700963756,13.91380853,207.19,207.05,7.4463111]
[1738700963757,0.12549,207.14,207.05,7.4463111]
[1738700963912,0.50196,207.07,207.05,7.4463111]
[1738700964112,13.91380853,207.07,207.05,7.4463111]
[1738700964545,13.53733853,207.07,207.05,7.4463111]
[1738700965029,13.91380853,207.07,207.01,0.063]
[1738700965542,41.38766086,207.12,207.02,36.55956086]
[1738700965838,1.0,207.19,207.01,0.063]
[1738700965839,5.94593683,207.23,207.13,20.0]
[1738700966014,1.178e-05,207.16,207.15,36.55956086]
[1738700966348,11.89187367,207.29,207.18,20.0]
[1738700966558,11.89187367,207.29,207.26,36.55956086]
[1738700967129,0.12549,207.28,207.24,36.55956086]
[1738700967640,0.12549,207.28,207.22,20.0]
[1738700967839,0.12549,207.26,207.2,36.55956086]
[1738700968283,0.12549,207.26,207.22,36.55956086]
[1738700968418,39.54200912,207.3,207.22,41.38516086]
[1738700968619,13.91380853,207.29,207.2,36.55956086]
[1738700969018,13.91380853,207.27,207.17,56.55956086]
[1738700969235,0.12549,207.22,207.17,56.55956086]
[1738700969428,36.55956086,207.27,207.17,36.55956086]
[1738700969647,36.55956086,207.25,207.16,20.0]
[1738700969937,0.12549,207.24,207.19,36.55956086]
[1738700970135,36.55956086,207.29,207.19,36.55956086]
[1738700970454,0.12549,207.27,207.19,36.55956086]
[1738700970636,13.53733853,207.24,207.17,36.62256086]
[1738700971330,36.55956086,207.27,207.17,36.62256086]
[1738700971656,13.53733853,207.22,207.17,0.063]
[1738700972029,0.12549,207.22,207.17,0.063]
[1738700972463,13.53733853,207.2,207.17,0.063]
[1738700972752,13.53733853,207.24,207.17,0.063]
[1738700972753,13.91380853,207.18,207.17,0.063]
[1738700974044,13.78831853,207.18,207.17,0.063]
[1738700974227,36.55956086,207.22,207.17,0.063]
[1738700974867,50.47336939,207.22,207.17,0.063]
[1738700975035,0.25098,207.14,207.05,4.8295]
[1738700975229,0.12549,207.09,207.02,36.55956086]
[1738700975459,0.12549,207.11,207.06,41.45206086]
[1738700975757,0.12549,207.11,207.06,36.62256086]
[1738700975964,36.55956086,207.16,207.06,53.52566086]
[1738700976144,36.55956086,207.22,207.12,36.55956086]
[1738700976351,13.91380853,207.17,207.08,36.55956086]
[1738700976552,13.78831853,207.17,207.1,36.55956086]
[1738700977452,0.12549,207.14,207.06,41.45186086]
[1738700978562,36.55956086,207.12,207.06,0.063]
[1738700978742,13.91380853,207.11,207.06,0.063]
[1738700978942,13.78831853,207.07,207.06,0.063]
[1738700979142,13.91380853,207.07,207.06,0.063]
[1738700979455,14.53,207.24,207.06,0.063]
[1738700979634,1.0,207.09,206.98,36.55956086]
[1738700979833,36.55956086,207.05,206.96,36.55956086]
[1738700980235,0.90583298,207.04,206.94,36.55956086]
[1738700980430,0.90596231,207.04,206.96,36.55956086]
[1738700980651,41.38976086,207.03,206.94,36.55956086]
[1738700980855,36.55956086,206.99,206.9,36.55956086]
[1738700981060,20.0,206.94,206.86,36.55956086]
[1738700981263,36.55956086,206.93,206.84,36.55956086]
[1738700981461,0.90624698,206.95,206.88,36.55956086]
[1738700981649,0.90624698,206.95,206.83,0.063]
[1738700981650,36.55956086,206.99,206.9,36.55956086]
[1738700981849,20.0,206.98,206.92,36.55956086]
[1738700982162,1.0,207.02,206.94,36.55956086]
[1738700982336,36.55956086,207.01,206.92,36.55956086]
[1738700982532,20.0,206.98,206.92,36.62256086]
[1738700982879,20.0,206.95,206.92,0.063]
[1738700983167,38.38168508,207.0,206.92,13.47484853]
[1738700983337,38.38168508,207.0,206.92,0.063]
[1738700983537,38.38168508,207.06,206.97,38.38168508]
[1738700983852,38.38168508,206.98,206.92,0.063]
[1738700984040,0.50196,206.97,206.92,0.063]
[1738700984761,38.88364508,206.94,206.92,0.063]
[1738700985256,43.21208508,207.02,206.92,0.063]
[1738700985464,38.38168508,207.06,206.97,38.38168508]
[1738700985763,38.38168508,207.06,206.98,13.41184853]
[1738700985950,12.0682,207.16,207.05,38.38168508]
[1738700986153,48.85037733,207.14,207.1,38.38168508]
[1738700986640,53.67807733,207.14,207.08,38.38168508]
[1738700986834,48.85037733,207.14,207.09,13.41184853]
[1738700987039,48.85037733,207.14,207.12,38.38168508]
[1738700988067,48.85037733,207.14,207.1,38.38168508]
[1738700988875,48.85037733,207.14,207.11,13.41184853]
[1738700989159,0.12549,207.13,207.09,38.38168508]
[1738700989348,0.25098,207.13,207.07,38.38168508]
[1738700990963,48.85037733,207.14,207.12,38.38168508]
[1738700991169,48.85037733,207.14,207.13,13.41184853]
[1738700991367,48.85037733,207.14,207.12,38.38168508]
[1738700991553,0.25098,207.13,207.1,38.38168508]
[1738700991752,48.85037733,207.14,207.12,38.38168508]
[1738700991947,48.85037733,207.14,207.13,13.41184853]
[1738700992965,48.85037733,207.14,207.13,56.5295611]
[1738700993344,48.85037733,207.14,207.13,51.7017611]
[1738700993550,48.85037733,207.14,207.13,38.28991257]
[1738700993752,0.50196,207.13,207.07,38.28991257]
[1738700994172,0.12549,207.13,207.08,13.41184853]
[1738700994478,0.25098,207.13,207.07,38.28991257]
[1738700994777,0.25098,207.13,207.08,0.063]
[1738700994778,0.12549,207.13,207.08,0.063]
[1738700994936,0.12549,207.12,207.08,0.063]
[1738700995135,0.12549,207.13,207.08,0.063]
[1738700995366,4.95339,207.13,207.08,0.063]
[1738700996141,0.37647,207.12,207.08,0.063]
[1738700996548,0.50196,207.09,207.08,0.063]
[1738700996959,0.12549,207.09,207.08,0.063]
[1738700997170,48.88037733,207.14,207.08,0.063]
[1738700997171,4.8278,207.13,207.08,0.063]
[1738700997374,2.40747811,207.12,207.08,0.063]
[1738700997672,0.50196,207.07,206.96,38.28991257]
[1738700997970,14.31736664,207.12,206.94,38.28991257]
[1738700997971,0.50196,207.03,206.94,38.28991257]
[1738700998168,1.50196,207.01,206.92,0.063]
[1738700998465,0.12549,206.97,206.92,38.35291257]
[1738700998665,0.12549,206.97,206.92,0.063]
[1738700998863,0.50196,206.96,206.92,0.063]
[1738700999476,0.12549,206.96,206.92,0.063]
[1738700999694,0.25098,206.97,206.92,0.063]
[1738700999975,0.25098,206.96,206.92,0.063]
[1738701000360,0.25098,206.97,206.92,0.063]
[1738701000557,1.0,206.95,206.87,0.063]
[1738701000759,0.25098,206.88,206.87,0.0001]
[1738701001078,0.90656749,206.88,206.87,0.0001]
[1738701001259,1.40852749,206.88,206.87,0.0001]
[1738701001459,1.40852749,206.88,206.77,0.063]
[1738701001460,0.12549,206.8,206.71,0.063]
[1738701001673,1.0,206.75,206.71,0.063]
[1738701001872,0.90706588,206.78,206.71,0.063]
[1738701002052,0.90719106,206.8,206.72,38.28991257]
[1738701002252,0.90692555,206.86,206.77,38.28991257]
[1738701002463,48.85037733,206.87,206.79,38.28991257]
[1738701002677,48.85037733,206.87,206.83,38.28991257]
[1738701002983,48.85037733,206.87,206.85,38.28991257]
[1738701003147,48.85037733,206.87,206.81,38.28991257]
[1738701003349,13.41184853,206.85,206.75,38.28991257]
[1738701003550,13.41184853,206.81,206.69,38.28991257]
[1738701003787,13.41184853,206.85,206.62,0.063]
[1738701003788,1.50196,206.78,206.63,38.28991257]
[1738701003982,0.90726548,206.84,206.7,38.28991257]
[1738701004154,0.90687882,206.86,206.76,38.28991257]
[1738701004360,1.0,206.82,206.71,0.063]
[1738701004591,0.50196,206.77,206.71,0.063]
[1738701004879,0.90721978,206.76,206.71,0.063]
[1738701005058,5.8351,206.82,206.71,0.063]
[1738701005257,1.0,206.75,206.71,0.063]
[1738701005485,0.50196,206.73,206.71,0.063]
[1738701005693,1.15837135,206.72,206.71,0.063]
[1738701005874,0.90739135,206.72,206.71,0.063]
[1738701006069,1.0,206.77,206.71,0.063]
[1738701006268,1.0,206.72,206.62,0.063]
[1738701006465,1.0,206.68,206.62,0.063]
[1738701006666,7.6888,206.78,206.62,0.063]
[1738701006667,2.0,206.76,206.62,0.063]
[1738701006872,0.90740784,206.77,206.67,13.41184853]
[1738701007079,12.0878,206.82,206.76,0.063]
[1738701007080,0.9071273,206.82,206.76,0.063]
[1738701007269,5.74132942,206.85,206.76,0.063]
[1738701007672,0.90683344,206.84,206.76,0.063]
[1738701007958,0.37647,206.82,206.76,0.063]
[1738701008158,28.88037733,206.87,206.77,13.41184853]
[1738701008358,0.12549,206.86,206.77,13.41184853]
[1738701008560,28.88037733,206.87,206.83,13.41184853]
[1738701008788,28.88037733,206.87,206.84,38.28991257]
[1738701009384,28.88037733,206.87,206.8,12.0886]
[1738701009385,28.88037733,206.87,206.82,38.28991257]
[1738701009582,28.88037733,206.87,206.86,51.7017611]
[1738701010161,3.50167733,206.87,206.86,52.0782311]
[1738701010367,7.733e-05,206.87,206.86,52.8030259]
[1738701010590,12.3481,207.05,206.9,20.12549]
[1738701010591,4.8298,207.05,206.9,20.12549]
[1738701010885,12.071,207.11,207.01,13.41184853]
[1738701010886,0.90583289,207.1,207.01,13.41184853]
[1738701011189,0.25098,207.06,206.91,38.28991257]
[1738701011484,0.12549,207.02,206.91,38.28991257]
[1738701011687,0.25098,206.99,206.89,38.28991257]
[1738701011857,0.25098,206.99,206.87,38.28991257]
[1738701011858,0.25098,206.98,206.87,38.28991257]
[1738701012061,0.37647,206.96,206.85,38.28991257]
[1738701012381,0.37647,206.96,206.82,4.8349]
[1738701012382,1.0,207.06,206.92,13.41184853]
[1738701012709,0.90608238,207.06,206.93,38.28991257]
[1738701012869,4.8297,207.05,206.95,38.28991257]
[1738701013062,0.90586585,207.09,206.95,38.28991257]
[1738701013259,0.37647,207.03,206.93,38.28991257]
[1738701013659,0.90593651,207.05,206.95,38.28991257]
[1738701013863,0.50196,207.04,206.89,38.28991257]
[1738701014084,0.37647,206.99,206.85,38.28991257]
[1738701014395,20.0,207.0,206.91,38.28991257]
[1738701014563,0.90610017,207.04,206.91,38.28991257]
[1738701014764,0.90610017,207.04,206.95,38.28991257]
[1738701014974,4.8302,207.03,206.95,38.28991257]
[1738701015190,0.37647,207.01,206.93,38.28991257]
[1738701015397,4.8302,207.03,206.93,38.28991257]
[1738701015773,0.90599496,207.1,206.98,13.41184853]
[1738701016002,20.0,207.09,206.92,0.12549]
[1738701016164,26.2369088,207.08,206.95,38.28991257]
[1738701016366,0.37647,207.03,206.95,38.28991257]
[1738701016582,0.37647,207.03,206.93,38.28991257]
[1738701016787,0.37647,207.01,206.93,38.28991257]
[1738701017001,0.90601349,207.07,206.96,13.41184853]
[1738701017188,4.8285,207.1,206.99,38.28991257]
[1738701017497,0.90581332,207.09,207.0,13.41184853]
[1738701017666,12.0126,207.15,207.03,0.12549]
[1738701017667,0.90562403,207.11,207.03,0.12549]
[1738701017875,0.03,207.2,207.1,38.28991257]
[1738701018182,0.93527648,207.2,207.02,0.72448347]
[1738701018364,0.37647,207.13,207.03,38.28991257]
[1738701018562,5.76306269,207.14,207.01,38.28991257]
[1738701018563,0.37647,207.11,207.01,38.28991257]
[1738701018794,0.90557952,207.12,207.06,13.41184853]
[1738701018969,0.03,207.14,207.1,13.41184853]
[1738701019265,0.03,207.14,207.13,38.28991257]
[1738701019466,0.03,207.14,207.09,38.28991257]
[1738701019699,0.03,207.14,207.07,38.28991257]
[1738701019903,0.03,207.14,206.97,1.72421214]
[1738701019904,0.03,207.14,207.06,13.41184853]
[1738701020067,0.03,207.14,207.1,38.28991257]
[1738701020769,0.03,207.14,207.05,38.28991257]
[1738701021084,0.03,207.14,207.07,38.28991257]
[1738701021295,0.03,207.14,207.03,38.28991257]
[1738701021296,0.93545543,207.14,207.03,38.28991257]
[1738701021460,0.50196,207.13,206.99,38.28991257]
[1738701021665,0.50196,207.11,206.97,38.28991257]
[1738701021880,0.12549,207.09,206.99,38.28991257]
[1738701022099,0.93578407,207.14,207.03,38.28991257]
[1738701022303,0.03,207.14,207.1,13.41184853]
[1738701022588,0.03,207.14,207.13,51.8272511]
[1738701023103,0.03,207.14,207.11,38.28991257]
[1738701023265,0.03,207.14,207.07,38.28991257]
[1738701023473,0.03,207.14,207.08,13.41184853]
[1738701023671,0.03,207.14,207.09,38.28991257]
[1738701024085,0.03,207.14,207.03,38.28991257]
[1738701024285,0.03,207.14,207.07,38.28991257]
[1738701024600,0.03,207.14,207.13,51.8272511]
[1738701024971,0.0001,207.14,207.13,56.6550511]
[1738701025173,0.0001,207.14,207.13,51.7017611]
[1738701025478,0.0001,207.14,207.13,13.41184853]
[1738701025677,0.0001,207.14,207.09,40.22068657]
[1738701025978,0.0001,207.14,207.11,38.28991257]
[1738701026287,0.0001,207.14,207.06,38.28991257]
[1738701026479,0.0001,207.14,207.04,38.28991257]
[1738701026878,0.0001,207.14,207.06,37.28991257]
[1738701027080,0.0001,207.14,207.06,38.28991257]
[1738701027280,0.0001,207.14,207.13,13.53733853]
[1738701027790,0.0001,207.14,207.13,13.41184853]
[1738701028181,0.0001,207.14,207.13,13.91380853]
[1738701028707,0.03,207.25,207.18,20.0]
[1738701028880,0.03,207.25,207.24,13.41184853]
[1738701029193,0.03,207.25,207.24,56.5270611]
[1738701029506,0.03,207.25,207.18,38.28991257]
[1738701029994,0.03,207.25,207.23,38.28991257]
[1738701030199,0.03,207.25,207.24,13.41184853]
[1738701030704,0.03,207.25,207.23,38.28991257]
[1738701030915,0.03,207.25,207.18,38.28991257]
[1738701031193,20.37647,207.24,207.16,38.28991257]
[1738701031516,0.37647,207.2,207.09,38.28991257]
[1738701031798,0.12549,207.15,207.06,4.8295]
[1738701032003,0.90529192,207.22,207.12,13.41184853]
[1738701032205,0.93529192,207.25,207.12,13.41184853]
[1738701032407,20.0,207.24,207.09,38.28991257]
[1738701032611,20.0,207.24,207.11,38.28991257]
[1738701032612,20.90529936,207.24,207.11,38.28991257]
[1738701032780,0.03,207.25,207.18,13.41184853]
[1738701032976,0.93495624,207.25,207.13,38.28991257]
[1738701033200,5.20177,207.24,207.13,43.11761257]
[1738701033381,0.12549,207.22,207.11,38.28991257]
[1738701033578,0.12549,207.22,207.06,12.0737]
[1738701033579,24.8253,207.24,207.14,13.41184853]
[1738701033780,4.8253,207.24,207.13,38.28991257]
[1738701033989,4.8253,207.24,207.07,17.6265974]
[1738701033990,20.50196,207.22,207.09,38.28991257]
[1738701034312,20.50196,207.22,207.03,12.0753]
[1738701034313,0.50196,207.2,207.05,4.8296]
[1738701034485,0.50196,207.2,206.97,9.9402]
[1738701034486,20.0,207.1,206.97,38.28991257]
[1738701034681,1.40772319,207.09,206.9,38.28991257]
[1738701035014,1.40772319,207.09,206.88,13.56721055]
[1738701035015,0.90595875,207.12,206.99,38.28991257]
[1738701035199,4.8257,207.22,207.09,38.28991257]
[1738701035498,4.8257,207.22,207.07,38.28991257]
[1738701035673,4.8255,207.24,207.11,38.28991257]
[1738701035870,0.03,207.25,207.17,38.28991257]
[1738701036100,0.03,207.25,207.12,0.849478]
[1738701036101,4.8551,207.25,207.15,38.28991257]
[1738701036409,0.03,207.25,207.15,38.28991257]
[1738701036600,0.25098,207.24,207.09,38.28991257]
[1738701036804,0.12549,207.24,207.21,38.28991257]
[1738701036982,0.12549,207.24,207.23,38.28991257]
[1738701037197,9e-05,207.24,207.23,56.9037311]
[1738701037394,9e-05,207.24,207.23,57.62728228]
[1738701037614,9e-05,207.24,207.23,56.9037311]
[1738701037816,8e-05,207.25,207.24,13.78831853]
[1738701038002,8e-05,207.25,207.24,13.41184853]
[1738701038823,0.03,207.35,207.28,13.41184853]
[1738701039029,0.03,207.35,207.31,38.28991257]
[1738701039896,0.03,207.35,207.33,38.28991257]
[1738701040114,0.03,207.35,207.31,38.28991257]
[1738701040307,0.25098,207.34,207.27,38.28991257]
[1738701040509,0.03,207.35,207.29,38.28991257]
[1738701041008,0.03,207.35,207.31,38.28991257]
[1738701041217,0.03,207.35,207.34,13.41184853]
[1738701041623,0.03,207.35,207.34,13.53733853]
[1738701041993,0.03,207.35,207.34,13.41184853]
[1738701042431,0.0001,207.35,207.34,52.0782311]
[1738701042600,0.03,207.41,207.4,0.12549]
[1738701042920,0.03,207.41,207.4,51.8272511]
[1738701043099,0.0001,207.42,207.41,0.12549]
[1738701043305,0.0001,207.42,207.41,14.78831853]
[1738701043506,0.0001,207.42,207.41,13.78831853]
[1738701043713,0.03,207.56,207.41,13.66282853]
[1738701043902,0.03,207.56,207.5,38.28991257]
[1738701044215,0.03,207.56,207.47,38.28991257]
[1738701044426,20.03,207.56,207.49,38.28991257]
[1738701044820,0.93365895,207.56,207.49,38.28991257]
[1738701045131,0.93365895,207.56,207.41,0.12549]
[1738701045132,20.40647,207.51,207.41,38.28991257]
[1738701045430,0.37647,207.49,207.41,38.28991257]
[1738701045603,1.28040182,207.49,207.41,38.28991257]
[1738701045803,20.03,207.51,207.45,38.28991257]
[1738701045804,0.03,207.51,207.45,38.28991257]
[1738701046005,0.03,207.51,207.47,38.28991257]
[1738701046620,0.03,207.51,207.49,38.28991257]
[1738701047031,4.8491,207.51,207.43,38.28991257]
[1738701047211,4.8491,207.51,207.39,38.28991257]
[1738701047212,0.37647,207.49,207.39,38.28991257]
[1738701047413,0.25098,207.47,207.39,38.28991257]
[1738701047908,0.25098,207.45,207.37,38.28991257]
[1738701048119,0.12549,207.42,207.35,38.28991257]
[1738701048312,0.12549,207.42,207.26,13.94501568]
[1738701048313,0.12549,207.38,207.26,13.2217]
[1738701048527,0.90446495,207.38,207.27,38.28991257]
[1738701048833,0.9346495,207.51,207.37,38.28991257]
[1738701049032,20.9346495,207.51,207.39,38.28991257]
[1738701049216,13.41184853,207.46,207.35,38.28991257]
[1738701049414,40.9636,207.5,207.32,38.28991257]
[1738701049415,0.9043002,207.45,207.32,38.28991257]
[1738701049624,40.9636,207.5,207.38,38.28991257]
[1738701049834,41.9636,207.5,207.36,38.28991257]
[1738701050132,0.50196,207.42,207.32,38.28991257]
[1738701050334,0.12549,207.37,207.3,38.28991257]
[1738701050633,0.90451978,207.42,207.32,38.28991257]
[1738701050827,0.90451978,207.42,207.35,38.28991257]
[1738701051024,7.6436,207.48,207.33,38.28991257]
[1738701051025,0.37647,207.4,207.33,38.28991257]
[1738701051220,0.37647,207.4,207.19,2.0]
[1738701051221,0.12549,207.35,207.28,38.28991257]
[1738701051534,0.12549,207.36,207.3,38.28991257]
[1738701051830,0.37647,207.34,207.26,38.28991257]
[1738701052034,0.37647,207.34,207.17,16.8942]
[1738701052035,0.12549,207.34,207.28,38.28991257]
[1738701052238,0.12549,207.34,207.24,13.41184853]
[1738701052239,0.12549,207.34,207.32,38.28991257]
[1738701052540,0.37647,207.37,207.32,38.28991257]
[1738701052739,0.12549,207.37,207.34,38.28991257]
[1738701053125,16.8709,207.46,207.36,38.28991257]
[1738701053324,17.77508276,207.46,207.36,38.28991257]
[1738701053537,20.0,207.43,207.34,38.28991257]
[1738701053740,20.0,207.43,207.28,4.8242]
[1738701053741,0.12549,207.4,207.32,38.28991257]
[1738701053931,0.37647,207.38,207.32,38.28991257]
[1738701054239,0.37647,207.38,207.3,38.28991257]
[1738701054614,0.12549,207.35,207.3,38.28991257]
[1738701054826,0.12549,207.31,207.24,38.28991257]
[1738701055115,20.0,207.36,207.3,38.28991257]
[1738701055345,4.8227,207.36,207.32,38.28991257]
[1738701055637,4.8206,207.44,207.34,38.28991257]
[1738701055873,0.90419724,207.43,207.34,38.28991257]
[1738701056050,16.8722,207.44,207.36,38.28991257]
[1738701056051,5.72495694,207.44,207.36,38.28991257]
[1738701056347,4.8192,207.5,207.43,38.28991257]
[1738701056556,4.8192,207.5,207.35,51.7017611]
[1738701056557,0.03,207.51,207.47,38.28991257]
[1738701056737,0.03,207.51,207.49,38.28991257]
[1738701057058,0.03,207.51,207.43,38.28991257]
[1738701057350,0.03,207.51,207.45,38.28991257]
[1738701057638,0.03,207.51,207.47,38.28991257]
[1738701057826,0.03,207.51,207.49,38.28991257]
[1738701058025,0.03,207.51,207.39,17.72478412]
[1738701058026,0.03,207.51,207.45,38.28991257]
[1738701058229,0.28098,207.51,207.45,38.28991257]
[1738701058438,0.03,207.51,207.43,38.28991257]
[1738701058621,0.93392258,207.51,207.43,38.28991257]
[1738701058821,0.03,207.51,207.43,38.28991257]
[1738701059044,0.03,207.51,207.49,38.28991257]
[1738701059427,0.03,207.51,207.47,38.28991257]
[1738701059617,0.28098,207.51,207.44,38.28991257]
[1738701059825,0.12549,207.48,207.4,38.28991257]
[1738701060127,0.37647,207.46,207.4,38.28991257]
[1738701060337,0.90409729,207.48,207.38,38.28991257]
[1738701060518,20.0,207.49,207.38,38.28991257]
[1738701060721,0.03,207.51,207.34,38.28991257]
[1738701060919,1.0,207.45,207.32,38.28991257]
[1738701061119,1.0,207.43,207.28,38.28991257]
[1738701061315,1.0,207.43,207.24,4.8251]
[1738701061316,1.0,207.35,207.24,38.28991257]
[1738701061516,1.0,207.32,207.18,38.28991257]
[1738701061744,1.0,207.32,207.16,0.063]
[1738701061745,0.37647,207.21,207.16,0.063]
[1738701061948,0.12549,207.18,207.16,0.063]
[1738701062147,0.37647,207.17,207.16,0.063]
[1738701062451,0.90533223,207.21,207.16,0.063]
[1738701062647,0.90526521,207.26,207.16,0.063]
[1738701062837,2.83692521,207.26,207.16,0.063]
[1738701063032,1.0,207.25,207.16,0.063]
[1738701063236,20.12549,207.17,207.16,0.063]
[1738701063427,4.826,207.21,207.16,0.063]
[1738701063748,0.90512133,207.23,207.16,0.063]
[1738701064042,13.91380853,207.17,207.16,0.0001]
[1738701064254,0.37647,207.17,207.16,0.0001]
[1738701064471,0.90524646,207.23,207.16,0.0001]
[1738701064623,0.90521955,207.23,207.16,0.0001]
[1738701064824,0.90509606,207.28,207.16,0.0001]
[1738701065129,9.6488,207.32,207.21,38.28991257]
[1738701065345,4.8254,207.32,207.23,43.11541257]
[1738701065545,5.72759082,207.34,207.25,38.28991257]
[1738701065746,5.72759082,207.34,207.2,13.53733853]
[1738701065747,0.90467944,207.39,207.31,38.28991257]
[1738701065923,1.1853034,207.47,207.31,38.28991257]
[1738701065924,2.09977167,207.48,207.37,38.28991257]
[1738701066258,1.19544038,207.48,207.41,38.28991257]
[1738701066457,1.19544038,207.48,207.39,38.28991257]
[1738701066663,4.8192,207.5,207.41,38.28991257]
[1738701066964,0.03,207.51,207.42,38.28991257]
[1738701067126,4.8491,207.51,207.38,38.28991257]
[1738701067325,16.8682,207.49,207.36,38.28991257]
[1738701067530,16.8682,207.49,207.3,5.54708677]
[1738701067531,1.02972347,207.48,207.3,5.54708677]
[1738701067733,0.12549,207.45,207.36,38.28991257]
[1738701067953,0.9041274,207.44,207.36,38.28991257]
[1738701068161,0.90422446,207.47,207.34,38.28991257]
[1738701068325,0.9040521,207.48,207.36,38.28991257]
[1738701068526,4.8195,207.49,207.38,38.28991257]
[1738701068727,0.25098,207.45,207.34,38.28991257]
[1738701069029,0.90425497,207.55,207.42,38.28991257]
[1738701069251,0.12549,207.53,207.42,38.28991257]
[1738701069446,0.12549,207.53,207.35,38.41540257]
[1738701069447,0.25098,207.5,207.35,38.28991257]
[1738701069647,4.8491,207.51,207.38,38.28991257]
[1738701069648,20.12549,207.48,207.38,38.28991257]
[1738701069852,4.8491,207.51,207.42,38.28991257]
[1738701070354,0.12549,207.49,207.42,38.28991257]
[1738701070549,0.12549,207.49,207.36,13.53733853]
[1738701070550,0.03,207.51,207.44,38.28991257]
[1738701070739,20.0,207.5,207.42,38.28991257]
[1738701070929,0.12549,207.47,207.32,5.54648125]
[1738701071133,0.12549,207.45,207.34,38.28991257]
[1738701071430,1.02957516,207.45,207.23,1.0]
[1738701071752,1.02957516,207.45,207.22,51.85461257]
[1738701071753,0.12549,207.43,207.37,38.28991257]
[1738701071951,0.12549,207.43,207.37,1.0]
[1738701072258,0.25098,207.6,207.31,40.28991257]
[1738701072435,14.78098,207.6,207.31,38.28991257]
[1738701072634,44.78098,207.53,207.24,39.28991257]
[1738701072956,14.78098,207.49,207.22,1.0]
[1738701073153,0.25098,207.49,207.26,2.0]
[1738701073339,0.25098,207.49,207.3,40.28991257]
[1738701073544,16.869,207.48,207.36,40.28991257]
[1738701073740,20.0,207.45,207.38,38.28991257]
[1738701073954,20.0,207.45,207.36,38.28991257]
[1738701074248,0.12549,207.43,207.36,38.28991257]
[1738701074434,0.37647,207.44,207.36,1.0]
[1738701074758,0.37647,207.44,207.3,4.8238]
[1738701074759,20.0,207.38,207.24,38.28991257]
[1738701074943,20.0,207.38,207.28,1.0]
[1738701075358,85.54897393,207.53,207.3,1.0]
[1738701075650,33.91380853,207.44,207.25,38.28991257]
[1738701075853,33.91380853,207.44,207.28,1.0]
[1738701076160,33.91380853,207.44,207.27,38.28991257]
[1738701076339,33.91380853,207.44,207.24,1.0]
[1738701076542,33.91380853,207.44,207.21,1.0]
[1738701076748,33.91380853,207.44,207.17,39.28991257]
[1738701076952,33.91380853,207.44,207.21,1.0]
[1738701077159,33.91380853,207.44,207.26,1.0]
[1738701077333,33.91380853,207.44,207.28,1.0]
[1738701077657,20.50196,207.39,207.28,1.0]
[1738701077842,0.50196,207.37,207.26,1.0]
[1738701078039,0.12549,207.34,207.23,39.28991257]
[1738701078233,0.12549,207.3,207.21,1.0]
[1738701078432,0.37647,207.26,207.19,38.28991257]
[1738701078746,0.37647,207.26,207.17,2.0]
[1738701078747,0.37647,207.26,207.17,39.28991257]
[1738701078948,14.60339771,207.3,207.16,0.0001]
[1738701078949,0.50196,207.21,207.16,0.0001]
[1738701079137,0.12549,207.21,207.18,1.0]
[1738701079335,0.12549,207.21,207.16,1.0001]
[1738701079555,0.37647,207.21,207.16,0.0001]
[1738701079759,20.37647,207.17,207.16,0.0001]
[1738701079943,20.50196,207.17,207.16,0.0001]